fUST/lending_fUST_20250719
["ID","MTS","AMOUNT","RATE_DAILY","PERIOD"]
[373125212,1752869442077,-460.0,0.00017064,2]
[373125213,1752869442087,-460.0,0.00017064,2]
[373125214,1752869442097,-460.0,0.00017064,2]
[373125215,1752869442106,-460.0,0.00017064,2]
[373125216,1752869442116,-460.0,0.00017064,2]
[373125217,1752869442125,-460.0,0.00017064,2]
[373125218,1752869442135,-460.0,0.00017064,2]
[373125219,1752869442145,-460.0,0.00017064,2]
[373125220,1752869442154,-600.87,0.00017064,2]
[373125221,1752869442163,-408.32922336,0.00017064,2]
[373125222,1752869442173,-503.74129179,0.00017064,2]
[373125223,1752869442182,-460.0,0.00017065,2]
[373125224,1752869442192,-1735.47,0.00017065,2]
[373125225,1752869442202,-627.3,0.00017065,2]
[373125226,1752869442212,-1378.36,0.00017065,2]
[373125227,1752869442222,-460.0,0.00017065,2]
[373125228,1752869442232,-1716.56,0.00017066,2]
[373125229,1752869442241,-839.79,0.00017066,2]
[373125230,1752869442251,-2794.04199138,0.00017088,2]
[373125231,1752869442261,-1778.03425977,0.0001721,2]
[373125232,1752869442270,-500.0,0.00017321,2]
[373125233,1752869442280,-500.0,0.00017333,2]
[373125234,1752869442289,-329.33592927,0.00017333,2]
[373125235,1752869442301,-460.0,0.00017334,2]
[373125236,1752869442310,-1077.82,0.00017334,2]
[373125237,1752869442319,-460.0,0.00017335,2]
[373125238,1752869442328,-1732.64,0.00017335,2]
[373125239,1752869442338,-460.0,0.00017335,2]
[373125240,1752869442347,-460.0,0.00017335,2]
[373125241,1752869442357,-1356.51,0.00017335,2]
[373125242,1752869442366,-460.0,0.00017335,2]
[373125243,1752869442375,-1084.06,0.00017335,2]
[373125244,1752869442384,-460.0,0.00017335,2]
[373125245,1752869442394,-460.0,0.00017335,2]
[373125246,1752869442403,-460.0,0.00017335,2]
[373125247,1752869442413,-460.0,0.00017336,2]
[373125248,1752869442422,-460.0,0.00017336,2]
[373125249,1752869442432,-460.0,0.00017336,2]
[373125250,1752869442444,-460.0,0.00017336,2]
[373125251,1752869442454,-460.0,0.00017336,2]
[373125252,1752869442463,-187.16479723,0.00017336,2]
[373125253,1752869442472,-160.4287729,0.00017336,2]
[373125254,1752869442483,-2691.19,0.00017336,2]
[373125255,1752869442493,-460.0,0.00017336,2]
[373125256,1752869442502,-460.0,0.00017336,2]
[373125257,1752869442512,-460.0,0.00017336,2]
[373125258,1752869442522,-460.0,0.00017336,2]
[373125259,1752869442534,-525.3,0.00017336,2]
[373125260,1752869442545,-460.0,0.00017336,2]
[373125261,1752869442555,-460.0,0.00017336,2]
[373125262,1752869442565,-460.0,0.00017336,2]
[373125263,1752869442574,-460.0,0.00017336,2]
[373125264,1752869442584,-1334.22,0.00017336,2]
[373125265,1752869442593,-630.07,0.00017336,2]
[373125266,1752869442603,-460.0,0.00017336,2]
[373125267,1752869442612,-460.0,0.00017336,2]
[373125268,1752869442622,-460.0,0.00017336,2]
[373125269,1752869442632,-460.0,0.00017336,2]
[373125270,1752869442642,-460.0,0.00017337,2]
[373125271,1752869442651,-460.0,0.00017337,2]
[373125272,1752869442661,-804.62,0.00017337,2]
[373125273,1752869442673,-504.3,0.00017337,2]
[373125274,1752869442683,-460.0,0.00017337,2]
[373125275,1752869442692,-460.0,0.00017337,2]
[373125276,1752869442701,-460.0,0.00017337,2]
[373125277,1752869442711,-460.0,0.00017337,2]
[373125278,1752869442722,-460.0,0.00017337,2]
[373125279,1752869442732,-460.0,0.00017338,2]
[373125280,1752869442743,-460.0,0.00017338,2]
[373125281,1752869442754,-460.0,0.00017338,2]
[373125282,1752869442764,-460.0,0.00017338,2]
[373125283,1752869442774,-460.0,0.00017338,2]
[373125284,1752869442784,-460.0,0.00017338,2]
[373125285,1752869442795,-460.0,0.00017338,2]
[373125286,1752869442805,-460.0,0.00017338,2]
[373125287,1752869442814,-460.0,0.00017338,2]
[373125288,1752869442824,-460.0,0.00017338,2]
[373125289,1752869442834,-460.0,0.00017338,2]
[373125290,1752869442844,-460.0,0.00017338,2]
[373125291,1752869442854,-341.0,0.00017338,2]
[373125292,1752869442865,-460.0,0.00017338,2]
[373125293,1752869442875,-460.0,0.00017338,2]
[373125294,1752869442885,-460.0,0.00017339,2]
[373125295,1752869442894,-1735.47,0.00017339,2]
[373125296,1752869442904,-627.3,0.00017339,2]
[373125297,1752869443021,-1378.36,0.00017339,2]
[373125298,1752869443031,-460.0,0.00017339,2]
[373125299,1752869443042,-1716.56,0.0001734,2]
[373125300,1752869443052,-839.79,0.0001734,2]
[373125301,1752869443062,-1778.03425977,0.00017521,2]
[373125302,1752869443071,-357.0,0.00017601,2]
[373125303,1752869443081,-460.0,0.00017608,2]
[373125305,1752869443090,-1077.82,0.00017608,2]
[373125307,1752869443100,-460.0,0.00017609,2]
[373125309,1752869443110,-1732.64,0.00017609,2]
[373125310,1752869443124,-460.0,0.00017609,2]
[373125311,1752869443135,-460.0,0.00017609,2]
[373125313,1752869443144,-1356.51,0.00017609,2]
[373125314,1752869443154,-460.0,0.00017609,2]
[373125316,1752869443163,-1084.06,0.00017609,2]
[373125318,1752869443173,-460.0,0.00017609,2]
[373125320,1752869443183,-460.0,0.00017609,2]
[373125322,1752869443193,-460.0,0.00017609,2]
[373125324,1752869443202,-460.0,0.0001761,2]
[373125327,1752869443212,-460.0,0.0001761,2]
[373125328,1752869443222,-460.0,0.0001761,2]
[373125330,1752869443230,-460.0,0.0001761,2]
[373125332,1752869443239,-460.0,0.0001761,2]
[373125333,1752869443248,-2691.19,0.0001761,2]
[373125335,1752869443258,-460.0,0.0001761,2]
[373125336,1752869443270,-294.19594916,0.0001761,2]
[373125337,1752869443280,-460.0,0.0001761,2]
[373125338,1752869443289,-460.0,0.0001761,2]
[373125339,1752869443301,-525.3,0.0001761,2]
[373125340,1752869443310,-460.0,0.0001761,2]
[373125341,1752869443320,-460.0,0.0001761,2]
[373125342,1752869443329,-460.0,0.0001761,2]
[373125343,1752869443338,-277.95,0.0001761,2]
[373125344,1752869443347,-1334.22,0.0001761,2]
[373125345,1752869443356,-630.07,0.0001761,2]
[373125346,1752869443365,-460.0,0.0001761,2]
[373125347,1752869443373,-460.0,0.0001761,2]
[373125348,1752869443382,-460.0,0.0001761,2]
[373125349,1752869443392,-460.0,0.00017611,2]
[373125350,1752869443401,-460.0,0.00017611,2]
[373125351,1752869443410,-804.62,0.00017611,2]
[373125352,1752869443418,-504.3,0.00017611,2]
[373125353,1752869443427,-460.0,0.00017611,2]
[373125354,1752869443439,-460.0,0.00017611,2]
[373125355,1752869443450,-460.0,0.00017611,2]
[373125356,1752869443459,-460.0,0.00017611,2]
[373125358,1752869443467,-460.0,0.00017612,2]
[373125359,1752869443478,-460.0,0.00017612,2]
[373125360,1752869443487,-460.0,0.00017612,2]
[373125362,1752869443496,-460.0,0.00017612,2]
[373125364,1752869443506,-460.0,0.00017612,2]
[373125366,1752869443516,-460.0,0.00017612,2]
[373125368,1752869443526,-460.0,0.00017612,2]
[373125369,1752869443537,-460.0,0.00017612,2]
[373125371,1752869443548,-460.0,0.00017612,2]
[373125373,1752869443559,-460.0,0.00017612,2]
[373125375,1752869443569,-460.0,0.00017612,2]
[373125376,1752869443578,-460.0,0.00017612,2]
[373125377,1752869443587,-460.0,0.00017612,2]
[373125378,1752869443598,-460.0,0.00017613,2]
[373125379,1752869443608,-1735.47,0.00017613,2]
[373125380,1752869443618,-627.3,0.00017613,2]
[373125381,1752869443629,-1378.36,0.00017613,2]
[373125382,1752869443639,-460.0,0.00017613,2]
[373125383,1752869443649,-1716.56,0.00017614,2]
[373125384,1752869443659,-839.79,0.00017614,2]
[373125385,1752869443668,-308.68763552,0.00017685,2]
[373125387,1752869443677,-1778.03425977,0.00017831,2]
[373125389,1752869443687,-500.0,0.0001786,2]
[373125391,1752869443696,-683.87180557,0.00017874,2]
[373125393,1752869443705,-460.0,0.00017882,2]
[373125395,1752869443714,-1077.82,0.00017882,2]
[373125396,1752869443724,-460.0,0.00017883,2]
[373125398,1752869443733,-1732.64,0.00017883,2]
[373125400,1752869443743,-460.0,0.00017883,2]
[373125402,1752869443752,-460.0,0.00017883,2]
[373125404,1752869443762,-1356.51,0.00017883,2]
[373125406,1752869443771,-460.0,0.00017883,2]
[373125408,1752869443781,-1084.06,0.00017883,2]
[373125410,1752869443790,-460.0,0.00017883,2]
[373125411,1752869443806,-460.0,0.00017883,2]
[373125414,1752869443821,-460.0,0.00017883,2]
[373125416,1752869443831,-460.0,0.00017884,2]
[373125418,1752869443841,-460.0,0.00017884,2]
[373125420,1752869443851,-460.0,0.00017884,2]
[373125422,1752869443860,-584.53979384,0.00017884,2]
[373125424,1752869443870,-404.92811846,0.00017884,2]
[373125426,1752869443880,-2691.19,0.00017884,2]
[373125428,1752869443889,-460.0,0.00017884,2]
[373125430,1752869443899,-460.0,0.00017884,2]
[373125432,1752869443919,-460.0,0.00017884,2]
[373125433,1752869443932,-525.3,0.00017884,2]
[373125435,1752869443941,-460.0,0.00017884,2]
[373125437,1752869443950,-289.38987885,0.00017884,2]
[373125439,1752869443960,-460.0,0.00017884,2]
[373125441,1752869443970,-1334.22,0.00017884,2]
[373125443,1752869443979,-630.07,0.00017884,2]
[373125446,1752869443989,-460.0,0.00017884,2]
[373125448,1752869443999,-460.0,0.00017884,2]
[373125450,1752869444010,-460.0,0.00017884,2]
[373125451,1752869444019,-460.0,0.00017885,2]
[373125453,1752869444029,-460.0,0.00017885,2]
[373125456,1752869444039,-804.62,0.00017885,2]
[373125458,1752869444050,-504.3,0.00017885,2]
[373125459,1752869444059,-460.0,0.00017885,2]
[373125461,1752869444068,-460.0,0.00017885,2]
[373125462,1752869444078,-460.0,0.00017885,2]
[373125463,1752869444089,-460.0,0.00017885,2]
[373125464,1752869444099,-460.0,0.00017886,2]
[373125465,1752869444108,-321.45,0.00017886,2]
[373125466,1752869444118,-460.0,0.00017886,2]
[373125467,1752869444127,-460.0,0.00017886,2]
[373125468,1752869444137,-460.0,0.00017886,2]
[373125469,1752869444146,-460.0,0.00017886,2]
[373125470,1752869444155,-460.0,0.00017886,2]
[373125471,1752869444164,-460.0,0.00017886,2]
[373125473,1752869444174,-582.88,0.00017886,2]
[373125474,1752869444185,-460.0,0.00017886,2]
[373125475,1752869444195,-460.0,0.00017886,2]
[373125476,1752869444204,-460.0,0.00017886,2]
[373125477,1752869444214,-173.93945779,0.00017887,2]
[373125478,1752869444225,-1735.47,0.00017887,2]
[373125479,1752869444234,-627.3,0.00017887,2]
[373125480,1752869444244,-1378.36,0.00017887,2]
[373125481,1752869444253,-460.0,0.00017887,2]
[373125482,1752869444264,-1716.56,0.00017888,2]
[373125483,1752869444275,-839.79,0.00017888,2]
[373125484,1752869444285,-188.0,0.0001789,3]
[373125485,1752869444296,-803.91114375,0.00017892,2]
[373125486,1752869444306,-500.40934655,0.00017913,2]
[373125487,1752869444315,-500.0,0.00017913,2]
[373125488,1752869444324,-500.0,0.00017913,2]
[373125489,1752869444334,-500.0,0.00017913,2]
[373125490,1752869444343,-420.0,0.00017945,2]
[373125491,1752869444353,-264.02101044,0.00018128,2]
[373125492,1752869444363,-1778.03425977,0.00018141,2]
[373125493,1752869444373,-712.24,0.00018151,3]
[373125494,1752869444383,-356.12,0.00018151,3]
[373125495,1752869444392,-409.32,0.00018153,3]
[373125496,1752869444402,-460.0,0.00018156,2]
[373125497,1752869444424,-1077.82,0.00018156,2]
[373125498,1752869444434,-185.30992788,0.00018157,2]
[373125499,1752869444447,-1732.64,0.00018157,2]
[373125500,1752869444456,-460.0,0.00018157,2]
[373125501,1752869444466,-460.0,0.00018157,2]
[373125502,1752869444476,-1356.51,0.00018157,2]
[373125503,1752869444486,-460.0,0.00018157,2]
[373125504,1752869444495,-1084.06,0.00018157,2]
[373125505,1752869444505,-460.0,0.00018157,2]
[373125506,1752869444516,-460.0,0.00018157,2]
[373125507,1752869444526,-460.0,0.00018157,2]
[373125508,1752869444536,-460.0,0.00018158,2]
[373125509,1752869444547,-460.0,0.00018158,2]
[373125510,1752869444557,-460.0,0.00018158,2]
[373125511,1752869444566,-2691.19,0.00018158,2]
[373125512,1752869444575,-460.0,0.00018158,2]
[373125513,1752869444585,-460.0,0.00018158,2]
[373125514,1752869444594,-460.0,0.00018158,2]
[373125515,1752869444604,-525.3,0.00018158,2]
[373125516,1752869444614,-460.0,0.00018158,2]
[373125517,1752869444624,-460.0,0.00018158,2]
[373125518,1752869444634,-1334.22,0.00018158,2]
[373125519,1752869444643,-630.07,0.00018158,2]
[373125520,1752869444653,-460.0,0.00018158,2]
[373125521,1752869444662,-460.0,0.00018158,2]
[373125522,1752869444671,-460.0,0.00018158,2]
[373125523,1752869444681,-460.0,0.00018159,2]
[373125524,1752869444690,-460.0,0.00018159,2]
[373125525,1752869444699,-804.62,0.00018159,2]
[373125526,1752869444709,-504.3,0.00018159,2]
[373125527,1752869444719,-460.0,0.00018159,2]
[373125528,1752869444728,-586.10586926,0.00018159,2]
[373125529,1752869444738,-460.0,0.00018159,2]
[373125530,1752869444748,-460.0,0.00018159,2]
[373125531,1752869444758,-460.0,0.0001816,2]
[373125532,1752869444768,-460.0,0.0001816,2]
[373125533,1752869444777,-460.0,0.0001816,2]
[373125534,1752869444787,-460.0,0.0001816,2]
[373125535,1752869444798,-460.0,0.0001816,2]
[373125536,1752869444808,-460.0,0.0001816,2]
[373125537,1752869444818,-460.0,0.0001816,2]
[373125538,1752869444827,-460.0,0.0001816,2]
[373125539,1752869444837,-460.0,0.0001816,2]
[373125540,1752869444846,-460.0,0.0001816,2]
[373125541,1752869444856,-1735.47,0.00018161,2]
[373125542,1752869444865,-627.3,0.00018161,2]
[373125543,1752869444876,-1378.36,0.00018161,2]
[373125544,1752869444885,-460.0,0.00018161,2]
[373125545,1752869444895,-1000.0,0.00018162,2]
[373125546,1752869444904,-1716.56,0.00018162,2]
[373125547,1752869444914,-839.79,0.00018162,2]
[373125548,1752869444924,-160.0,0.00018184,2]
[373125549,1752869444933,-160.0,0.00018269,2]
[373125550,1752869444943,-215.63268315,0.00018269,2]
[373125551,1752869444952,-476.25663856,0.00018269,2]
[373125552,1752869444962,-525.75194068,0.00018269,2]
[373125553,1752869444972,-839.30593155,0.00018269,2]
[373125554,1752869444981,-12610.43989422,0.00018269,2]
[373125555,1752869444991,-160.0,0.00018269,2]
[373125556,1752869445001,-160.0,0.00018269,2]
[373125557,1752869445011,-160.0,0.00018269,2]
[373125558,1752869445020,-214.4881157,0.00018269,2]
[373125559,1752869445029,-230.89969799,0.00018269,2]
[373125560,1752869445038,-160.0,0.00018269,2]
[373125561,1752869445051,-160.0,0.00018269,2]
[373125562,1752869445060,-160.0,0.00018269,2]
[373125563,1752869445069,-243.48066268,0.00018391,2]
[373125564,1752869445079,-519.67,0.0001843,2]
[373125565,1752869445089,-1077.82,0.0001843,2]
[373125566,1752869445099,-1732.64,0.00018431,2]
[373125567,1752869445109,-460.0,0.00018431,2]
[373125568,1752869445120,-460.0,0.00018431,2]
[373125569,1752869445130,-1356.51,0.00018431,2]
[373125570,1752869445139,-1084.06,0.00018431,2]
[373125571,1752869445149,-460.0,0.00018431,2]
[373125572,1752869445159,-460.0,0.00018431,2]
[373125573,1752869445168,-460.0,0.00018431,2]
[373125574,1752869445177,-460.0,0.00018432,2]
[373125575,1752869445187,-460.0,0.00018432,2]
[373125576,1752869445195,-2691.19,0.00018432,2]
[373125577,1752869445205,-460.0,0.00018432,2]
[373125578,1752869445214,-460.0,0.00018432,2]
[373125579,1752869445223,-460.0,0.00018432,2]
[373125580,1752869445232,-525.3,0.00018432,2]
[373125581,1752869445241,-460.0,0.00018432,2]
[373125582,1752869445251,-460.0,0.00018432,2]
[373125583,1752869445260,-1334.22,0.00018432,2]
[373125584,1752869445270,-630.07,0.00018432,2]
[373125585,1752869445280,-460.0,0.00018432,2]
[373125586,1752869445289,-460.0,0.00018432,2]
[373125587,1752869445301,-460.0,0.00018432,2]
[373125588,1752869445310,-364.15,0.00018433,2]
[373125589,1752869445319,-460.0,0.00018433,2]
[373125590,1752869445328,-804.62,0.00018433,2]
[373125591,1752869445338,-504.3,0.00018433,2]
[373125592,1752869445349,-460.0,0.00018433,2]
[373125593,1752869445359,-460.0,0.00018433,2]
[373125594,1752869445369,-460.0,0.00018433,2]
[373125595,1752869445380,-460.0,0.00018434,2]
[373125596,1752869445391,-460.0,0.00018434,2]
[373125597,1752869445401,-460.0,0.00018434,2]
[373125598,1752869445410,-460.0,0.00018434,2]
[373125599,1752869445419,-460.0,0.00018434,2]
[373125600,1752869445428,-460.0,0.00018434,2]
[373125601,1752869445438,-460.0,0.00018434,2]
[373125602,1752869445449,-460.0,0.00018434,2]
[373125603,1752869445458,-460.0,0.00018434,2]
[373125604,1752869445467,-1735.47,0.00018435,2]
[373125605,1752869445478,-627.3,0.00018435,2]
[373125606,1752869445488,-1378.36,0.00018435,2]
[373125607,1752869445497,-460.0,0.00018435,2]
[373125608,1752869445514,-1716.56,0.00018436,2]
[373125609,1752869445526,-839.79,0.00018436,2]
[373125610,1752869445537,-1778.03425977,0.00018452,2]
[373125611,1752869445548,-1000.0,0.0001846,2]
[373125612,1752869445558,-500.0,0.0001846,2]
[373125613,1752869445567,-1077.82,0.00018704,2]
[373125614,1752869445576,-1732.64,0.00018705,2]
[373125615,1752869445586,-460.0,0.00018705,2]
[373125616,1752869445595,-460.0,0.00018705,2]
[373125617,1752869445606,-1356.51,0.00018705,2]
[373125618,1752869445616,-1084.06,0.00018705,2]
[373125619,1752869445627,-460.0,0.00018705,2]
[373125620,1752869445637,-460.0,0.00018705,2]
[373125621,1752869445646,-460.0,0.00018705,2]
[373125622,1752869445658,-460.0,0.00018706,2]
[373125623,1752869445669,-460.0,0.00018706,2]
[373125624,1752869445678,-2691.19,0.00018706,2]
[373125625,1752869445688,-460.0,0.00018706,2]
[373125626,1752869445697,-460.0,0.00018706,2]
[373125627,1752869445814,-588.07,0.00018706,2]
[373125628,1752869445824,-525.3,0.00018706,2]
[373125629,1752869445835,-460.0,0.00018706,2]
[373125630,1752869445847,-460.0,0.00018706,2]
[373125631,1752869445856,-1334.22,0.00018706,2]
[373125632,1752869445866,-630.07,0.00018706,2]
[373125633,1752869445875,-460.0,0.00018706,2]
[373125634,1752869445884,-460.0,0.00018706,2]
[373125635,1752869445894,-460.0,0.00018707,2]
[373125636,1752869445903,-804.62,0.00018707,2]
[373125637,1752869445913,-504.3,0.00018707,2]
[373125638,1752869445923,-460.0,0.00018707,2]
[373125639,1752869445933,-460.0,0.00018707,2]
[373125640,1752869445943,-460.0,0.00018707,2]
[373125641,1752869445954,-460.0,0.00018708,2]
[373125642,1752869445964,-460.0,0.00018708,2]
[373125643,1752869445975,-460.0,0.00018708,2]
[373125644,1752869445984,-460.0,0.00018708,2]
[373125645,1752869445994,-460.0,0.00018708,2]
[373125647,1752869446003,-460.0,0.00018708,2]
[373125649,1752869446012,-460.0,0.00018708,2]
[373125651,1752869446022,-460.0,0.00018708,2]
[373125652,1752869446032,-460.0,0.00018708,2]
[373125653,1752869446044,-1735.47,0.00018709,2]
[373125654,1752869446056,-627.3,0.00018709,2]
[373125655,1752869446065,-1378.36,0.00018709,2]
[373125656,1752869446074,-460.0,0.00018709,2]
[373125657,1752869446084,-1716.56,0.0001871,2]
[373125658,1752869446093,-839.79,0.0001871,2]
[373125659,1752869446103,-260.0,0.00018732,2]
[373125661,1752869446112,-1778.03425977,0.00018762,2]
[373125662,1752869446122,-500.0,0.000188,2]
[373125663,1752869446132,-1314.7838689,0.000189,2]
[373125664,1752869446141,-308.68763552,0.00018956,2]
[373125665,1752869446152,-291.6857558,0.00018973,2]
[373125666,1752869446163,-500.0,0.00018973,2]
[373125667,1752869446173,-500.0,0.00018973,2]
[373125668,1752869446183,-500.0,0.00018973,2]
[373125669,1752869446195,-500.0,0.00018973,2]
[373125670,1752869446204,-504.32043466,0.00018973,2]
[373125671,1752869446215,-500.0,0.00018973,2]
[373125672,1752869446225,-1077.82,0.00018978,2]
[373125673,1752869446235,-1732.64,0.00018979,2]
[373125674,1752869446246,-460.0,0.00018979,2]
[373125675,1752869446257,-460.0,0.00018979,2]
[373125676,1752869446266,-1356.51,0.00018979,2]
[373125677,1752869446276,-1666.51386354,0.00018979,2]
[373125678,1752869446287,-197.35788754,0.00018979,2]
[373125679,1752869446298,-1666.51386354,0.00018979,2]
[373125680,1752869446307,-1666.51386354,0.00018979,2]
[373125681,1752869446317,-1666.51386354,0.00018979,2]
[373125683,1752869446326,-1666.51386354,0.00018979,2]
[373125685,1752869446335,-500.0,0.00018979,2]
[373125686,1752869446345,-1666.51386354,0.00018979,2]
[373125688,1752869446354,-1666.51386354,0.00018979,2]
[373125690,1752869446364,-1666.51386354,0.00018979,2]
[373125692,1752869446373,-1666.51386354,0.00018979,2]
[373125694,1752869446383,-1666.51386354,0.00018979,2]
[373125696,1752869446392,-1666.51386354,0.00018979,2]
[373125698,1752869446401,-1666.51386354,0.00018979,2]
[373125700,1752869446411,-1666.51386354,0.00018979,2]
[373125702,1752869446421,-1666.51386354,0.00018979,2]
[373125704,1752869446431,-1666.51386354,0.00018979,2]
[373125706,1752869446442,-1666.51386354,0.00018979,2]
[373125707,1752869446454,-1666.51386354,0.00018979,2]
[373125710,1752869446465,-1666.51386354,0.00018979,2]
[373125711,1752869446476,-1681.66398956,0.00018979,2]
[373125713,1752869446486,-1681.66398956,0.00018979,2]
[373125715,1752869446497,-1681.66398956,0.00018979,2]
[373125717,1752869446508,-1681.66398956,0.00018979,2]
[373125719,1752869446522,-1681.66398956,0.00018979,2]
[373125720,1752869446532,-1681.66398956,0.00018979,2]
[373125721,1752869446541,-1681.66398956,0.00018979,2]
[373125722,1752869446552,-1681.66398956,0.00018979,2]
[373125724,1752869446562,-1681.66398956,0.00018979,2]
[373125726,1752869446571,-1681.66398956,0.00018979,2]
[373125727,1752869446580,-1681.66398956,0.00018979,2]
[373125729,1752869446589,-1084.06,0.00018979,2]
[373125732,1752869446599,-460.0,0.00018979,2]
[373125734,1752869446609,-460.0,0.00018979,2]
[373125736,1752869446619,-460.0,0.00018979,2]
[373125738,1752869446629,-460.0,0.0001898,2]
[373125740,1752869446638,-460.0,0.0001898,2]
[373125742,1752869446648,-2691.19,0.0001898,2]
[373125744,1752869446657,-460.0,0.0001898,2]
[373125746,1752869446667,-460.0,0.0001898,2]
[373125748,1752869446677,-525.3,0.0001898,2]
[373125750,1752869446687,-460.0,0.0001898,2]
[373125752,1752869446697,-460.0,0.0001898,2]
[373125754,1752869446708,-1334.22,0.0001898,2]
[373125756,1752869446718,-630.07,0.0001898,2]
[373125758,1752869446728,-460.0,0.0001898,2]
[373125760,1752869446738,-460.0,0.0001898,2]
[373125762,1752869446747,-460.0,0.00018981,2]
[373125764,1752869446758,-504.3,0.00018981,2]
[373125766,1752869446768,-804.62,0.00018981,2]
[373125768,1752869446777,-460.0,0.00018981,2]
[373125770,1752869446787,-460.0,0.00018981,2]
[373125772,1752869446797,-460.0,0.00018981,2]
[373125774,1752869446807,-460.0,0.00018982,2]
[373125776,1752869446816,-460.0,0.00018982,2]
[373125778,1752869446826,-460.0,0.00018982,2]
[373125780,1752869446836,-460.0,0.00018982,2]
[373125782,1752869446845,-460.0,0.00018982,2]
[373125784,1752869446856,-460.0,0.00018982,2]
[373125786,1752869446865,-456.86,0.00018982,2]
[373125788,1752869446875,-460.0,0.00018982,2]
[373125790,1752869446884,-460.0,0.00018982,2]
[373125792,1752869446893,-1735.47,0.00018983,2]
[373125794,1752869446903,-627.3,0.00018983,2]
[373125796,1752869446915,-1378.36,0.00018983,2]
[373125798,1752869446924,-460.0,0.00018983,2]
[373125800,1752869446933,-1716.56,0.00018984,2]
[373125802,1752869446943,-839.79,0.00018984,2]
[373125804,1752869446953,-500.0,0.00019008,2]
[373125806,1752869446962,-1778.03425977,0.00019072,2]
[373125808,1752869446975,-666.0,0.00019178,2]
[373125809,1752869446983,-244.86806,0.00019178,2]
[373125810,1752869446992,-1077.82,0.00019252,2]
[373125811,1752869447002,-1732.64,0.00019253,2]
[373125812,1752869447011,-460.0,0.00019253,2]
[373125813,1752869447020,-460.0,0.00019253,2]
[373125814,1752869447029,-1356.51,0.00019253,2]
[373125815,1752869447039,-1084.06,0.00019253,2]
[373125816,1752869447051,-460.0,0.00019253,2]
[373125817,1752869447060,-460.0,0.00019253,2]
[373125818,1752869447068,-151.0,0.00019253,2]
[373125819,1752869447078,-460.0,0.00019253,2]
[373125820,1752869447087,-460.0,0.00019254,2]
[373125821,1752869447096,-2691.19,0.00019254,2]
[373125822,1752869447105,-460.0,0.00019254,2]
[373125823,1752869447115,-460.0,0.00019254,2]
[373125824,1752869447123,-525.3,0.00019254,2]
[373125825,1752869447132,-460.0,0.00019254,2]
[373125826,1752869447141,-460.0,0.00019254,2]
[373125827,1752869447150,-1334.22,0.00019254,2]
[373125828,1752869447159,-630.07,0.00019254,2]
[373125829,1752869447167,-460.0,0.00019254,2]
[373125830,1752869447176,-460.0,0.00019254,2]
[373125831,1752869447185,-169.97215349,0.00019255,2]
[373125832,1752869447194,-504.3,0.00019255,2]
[373125833,1752869447203,-804.62,0.00019255,2]
[373125834,1752869447212,-460.0,0.00019255,2]
[373125835,1752869447222,-460.0,0.00019255,2]
[373125836,1752869447230,-460.0,0.00019255,2]